Cogmind - Beta 10.2 @@@ ROGUE MODE // 2022.02.07 @ 00:50:09 Player: Zach Result: Destroyed by H-55 Commando with Assault Rifle Performance ------------- Evolutions (2) 1000 Regions Visited (5) 1000 Robots Destroyed (19) 95 Value Destroyed (571) 571 Prototype IDs (0) 0 Alien Tech Used (0) 0 Bonus (-24) -24 TOTAL SCORE: 2642 Bonus ------- Friendly Fire -24 Cogmind --------- Core Integrity 0/550 Matter 269/300 Energy 100/100 System Corruption 0% Temperature Cool (0) Movement Core (50) Location -8/Materials Parts ------- > --- POWER (2) -------- (None) > --- PROPULSION (2) --- (None) > --- UTILITY (4) ------ (None) > --- WEAPON (3) ------- (None) > --- INVENTORY (4) ---- Improved Heat Sink Improved Heat Sink Improved Heat Sink Shield Generator Peak State ------------ > --- POWER ------------ (None) > --- PROPULSION ------- Aluminum Leg Carbon-fiber Leg > --- UTILITY ---------- Small Storage Unit Advanced Sensor Array Targeting Computer Hardened Medium Armor Plating > --- WEAPON ----------- Assault Rifle Shotgun Gauss Rifle > --- INVENTORY -------- Improved Ion Engine Aluminum Leg Improved Heat Sink Improved Heat Sink Small Laser Heavy Assault Rifle [Rating: 20] Favorites ----------- Power Ion Engine Engine Ion Engine Propulsion Aluminum Leg Leg Aluminum Leg Utility Small Storage Unit Device Advanced Sensor Array Storage Small Storage Unit Processor Targeting Computer Protection Weapon Shielding Weapon Assault Rifle Energy Gun Medium Laser Ballistic Gun Assault Rifle Launcher Rocket Launcher Special Weapon Mining Laser Build | -11 -10 -10 -10 -9 -8 ------- Run | Scr Mat Min Exi Min Mat Slots Evolved 4 | . . . . . 4 Power 1 | . . . . . 1 Propulsion . | . . . . . . Utility 2 | . . . . . 2 Weapon 1 | . . . . . 1 Parts Attached 36 | 5 1 4 2 7 17 Power 3 | 1 . . . 1 1 Engine 3 | 1 . . . 1 1 Core . | . . . . . . Reactor . | . . . . . . Propulsion 6 | 1 . 1 . . 4 Treads . | . . . . . . Leg 6 | 1 . 1 . . 4 Wheel . | . . . . . . Hover . | . . . . . . Flight . | . . . . . . Utility 8 | 1 1 . 1 . 5 Device 1 | . . . . . 1 Storage 3 | 1 . . 1 . 1 Processor 1 | . . . . . 1 Hackware . | . . . . . . Protection 3 | . 1 . . . 2 Artifact . | . . . . . . Weapon 19 | 2 . 3 1 6 7 Energy Gun 5 | 1 . 2 . 1 1 Energy Cannon . | . . . . . . Ballistic Gun 10 | 1 . . 1 2 6 Ballistic Cannon . | . . . . . . Launcher 3 | . . 1 . 2 . Special Weapon 1 | . . . . 1 . Impact Weapon . | . . . . . . Slashing Weapon . | . . . . . . Piercing Weapon . | . . . . . . Special Melee Weapon . | . . . . . . Unidentified Prototypes . | . . . . . . Parts Lost 19 | . . . . 3 16 Power 3 | . . . . 1 2 Propulsion 3 | . . . . . 3 Utility 5 | . . . . 1 4 Weapon 8 | . . . . 1 7 Highest Loss Streak 11 | . . . . 3 11 Average Slot Usage (%) 91 | . 81 95 100 96 67 Engine 11 | . 14 14 14 12 4 Leg 24 | . 14 24 28 28 14 Device 1 | . . . . . 8 Storage 20 | . 14 14 27 26 8 Protection 3 | . 10 14 . . 6 Energy Gun 3 | . 14 14 . 1 1 Ballistic Gun 13 | . 14 11 13 9 21 Launcher 9 | . . 2 14 14 . Naked Turns 9 | . . . . . 9 Heaviest Build 28 | 13 14 16 19 19 28 Greatest Support 25 | 10 10 20 20 20 25 Greatest Overweight (x) 8 | 1 1 1 . . 8 Average Overweight (x) . | . 1 . . . . Largest Inventory Capacity 8 | 6 6 6 8 8 6 Average Capacity 7 | 5 6 6 7 7 5 Most Carried 8 | 6 6 6 6 8 6 Average Carried 6 | 4 6 5 6 7 5 Final Capacity 8 | 6 6 6 8 6 4 Final Carried 6 | 6 6 6 6 5 4 Class Distribution -------------------- 85% | Mutant 4% | Scavenger-Tank 4% | Scavenger-Gunner Dominant Class ---------------- Mutant | -10/Materials Mutant | -10/Mines Mutant | -10/Exiles Mutant | -9/Mines Mutant | -8/Materials Resources | -11 -10 -10 -10 -9 -8 ----------- Run | Scr Mat Min Exi Min Mat Matter Collected 746 | 241 25 26 . 20 434 Remotely . | . . . . . . Salvage Created 660 | 64 94 55 . 62 385 Parts 39 | 3 5 2 . 6 23 Haulers Intercepted . | . . . . . . Recyclers Shooed . | . . . . . . Parts Field Recycled . | . . . . . . Retrieved Matter . | . . . . . . Parts Self-Destructed . | . . . . . . Prevented . | . . . . . . Kills | -11 -10 -10 -10 -9 -8 ------- Run | Scr Mat Min Exi Min Mat Combat Hostiles Destroyed 17 | . 2 . . 7 8 Guns 13 | . 2 . . 3 8 AOE 4 | . . . . 4 . Classes Destroyed 5 | 1 1 . . 1 2 Recycler 2 | 1 . 1 . . . Swarmer 7 | . . . . 7 . Grunt 6 | . 2 . . . 4 Sentry 3 | . . . . . 3 Hunter 1 | . . . . . 1 Best Kill Streak 4 | 1 2 1 . 4 3 Combat Bots Only 4 | . 2 . . 4 3 Max Kills in Single Turn 3 | 1 1 1 . 3 1 Gunslinging . | . . . . . . Exploded 2 | . . . . 2 . Melee . | . . . . . . Uniques/NPCs Destroyed . | . . . . . . Combat | -11 -10 -10 -10 -9 -8 -------- Run | Scr Mat Min Exi Min Mat Damage Taken 2570 | . 76 . . 518 1976 Core 584 | . 28 . . 4 552 Absorbed by Shields . | . . . . . . Core Remaining (%) 93 | 100 . . . 87 . Volleys Fired 77 | 1 5 3 . 34 34 Largest 3 | 2 2 2 . 2 3 Hottest 103 | 60 60 70 . 100 103 Shots Fired 140 | 2 10 6 . 40 82 Gun 104 | 2 10 6 . 6 80 Cannon . | . . . . . . Launcher 8 | . . . . 6 2 Special 28 | . . . . 28 . Kinetic 89 | 1 5 3 . 6 74 Thermal 37 | . . 3 . 28 6 Explosive 8 | . . . . 6 2 Electromagnetic 6 | 1 5 . . . . Robot Hit Streak 13 | 1 5 5 . 2 13 Robot Miss Streak 3 | . 1 2 . 3 3 Penetration Max . | . . . . . . Secondary Targets 3 | . . . . . 3 Max Gunslinging Chain 1 | . . . . . 1 Shots Hit Robots 77 | 1 6 3 . 4 63 Core Hits 45 | 1 5 2 . 7 30 Critical Hits 1 | . . . . . 1 Critical Kills . | . . . . . . Critical Parts Destroyed 1 | . . . . . 1 Melee Attacks . | . . . . . . Impact . | . . . . . . Slashing . | . . . . . . Piercing . | . . . . . . Sneak Attacks . | . . . . . . Combat Hostiles . | . . . . . . Follow-up Attacks . | . . . . . . Damage Inflicted 1624 | 17 91 52 . 441 1023 Guns 1126 | 15 91 52 . 59 909 Cannons . | . . . . . . Explosions 435 | . . . . 358 77 Melee . | . . . . . . Ramming 39 | 2 . . . . 37 Kinetic 969 | 15 41 14 . 59 840 Thermal 392 | . . 38 . 285 69 Explosive 174 | . . . . 97 77 Electromagnetic 50 | . 50 . . . . Impact . | . . . . . . Slashing . | . . . . . . Piercing . | . . . . . . Highest Corruption 9 | . . . . 9 . Average Corruption 9 | . . . . 9 . Corruption Purged . | . . . . . . Effects 2 | . . . . 2 . Matter Fused 1 | . . . . 1 . Energy Discharges 1 | . . . . 1 . Overload Shots . | . . . . . . Overflow Damage 66 | . . . . 66 . Projectiles . | . . . . . . Explosions 66 | . . . . 66 . Melee . | . . . . . . Knockbacks . | . . . . . . Impact . | . . . . . . Kinetic . | . . . . . . Secondary . | . . . . . . Self-Inflicted Damage 146 | . . . . 130 16 Shots 5 | . . . . 5 . Rammed 12 | 3 . . . . 9 Targets Rammed 12 | 3 . . . . 9 Kicked . | . . . . . . Crushed . | . . . . . . Highest Temperature 250 | . 27 18 . 250 102 Average Temperature 78 | . 20 9 . 110 30 Received Heat Transfer 816 | . 42 . . . 774 Siege Activations . | . . . . . . Robots Corrupted . | . . . . . . Combat Hostiles . | . . . . . . Parts Fried . | . . . . . . Impact Corruptions . | . . . . . . Robots Melted . | . . . . . . Combat Hostiles . | . . . . . . Parts Melted . | . . . . . . Heat Transferred 597 | . . 111 . 300 186 Parts Sabotaged . | . . . . . . Parts Stolen . | . . . . . . Parts Stripped . | . . . . . . Power Chain Reactions . | . . . . . . Missiles Intercepted . | . . . . . . Alert | -11 -10 -10 -10 -9 -8 ------- Run | Scr Mat Min Exi Min Mat Peak Influence 205 | 5 53 25 . 205 186 Initial 20 | . 3 20 . . . Average 47 | 1 12 22 . 31 107 Maximum Alert Level 1 | . . . . 1 . Low Security (%) 99 | 100 100 100 . 98 100 Level 1 . | . . . . 1 . Level 2 . | . . . . . . Level 3 . | . . . . . . Level 4 . | . . . . . . Level 5 . | . . . . . . High Security . | . . . . . . Max Security . | . . . . . . Squads Dispatched 7 | . . . . . 7 Investigation 3 | . . . . . 3 Extermination . | . . . . . . Reinforcement 1 | . . . . . 1 Assault . | . . . . . . Garrison 3 | . . . . . 3 Intercept . | . . . . . . Construction Impeded 1 | . . . . . 1 Haulers Reinforced . | . . . . . . Stealth | -11 -10 -10 -10 -9 -8 --------- Run | Scr Mat Min Exi Min Mat Distress Signals . | . . . . . . Communications Jammed . | . . . . . . Distress Signals . | . . . . . . Times Spotted 22 | . 2 . . 7 13 Peak Tracking Total 5 | . 2 . . 4 5 Tactical Retreats 1 | . . . . . 1 Traps | -11 -10 -10 -10 -9 -8 ------- Run | Scr Mat Min Exi Min Mat Traps Triggered . | . . . . . . Indirectly . | . . . . . . Trap Hack Attempts . | . . . . . . Triggered . | . . . . . . Disarmed . | . . . . . . Reprogrammed . | . . . . . . Reused . | . . . . . . Traps Extracted . | . . . . . . Installed . | . . . . . . Triggered . | . . . . . . Machines | -11 -10 -10 -10 -9 -8 ---------- Run | Scr Mat Min Exi Min Mat Machines Disabled 3 | . . . . 3 . Max in Single Turn 3 | . . . . 3 . Machines Sabotaged . | . . . . . . Garrisons Compromised . | . . . . . . Overloaded Fab Kills . | . . . . . . Fab Network Shutdowns . | . . . . . . Hacking | -11 -10 -10 -10 -9 -8 --------- Run | Scr Mat Min Exi Min Mat Machines Accessed 3 | . . . . . 3 Terminals 2 | . . . . . 2 Fabricators . | . . . . . . Repair Stations 1 | . . . . . 1 Recycling Units . | . . . . . . Scanalyzers . | . . . . . . Garrison Access . | . . . . . . Total Hacks 19 | . . . . . 19 Successful 12 | . . . . . 12 Failed 7 | . . . . . 7 Catastrophic . | . . . . . . Database Lockouts . | . . . . . . Manual . | . . . . . . Terminals 8 | . . . . . 8 Fabricators . | . . . . . . Repair Stations 11 | . . . . . 11 Recycling Units . | . . . . . . Scanalyzers . | . . . . . . Garrison Access . | . . . . . . Terminal Hacks 4 | . . . . . 4 Record 3 | . . . . . 3 Robot Analysis 1 | . . . . . 1 Fabricator Hacks . | . . . . . . Repair Station Hacks 8 | . . . . . 8 Scan Component 4 | . . . . . 4 Repair 4 | . . . . . 4 Recycling Unit Hacks . | . . . . . . Scanalyzer . | . . . . . . Garrison Access Hacks . | . . . . . . Unauthorized Hacks . | . . . . . . Terminals . | . . . . . . Fabricators . | . . . . . . Repair Stations . | . . . . . . Recycling Units . | . . . . . . Scanalyzers . | . . . . . . Garrison Access . | . . . . . . Data Cores Recovered . | . . . . . . Used . | . . . . . . Hacking Detections 3 | . . . . . 3 Full Trace Events 3 | . . . . . 3 Feedback Events . | . . . . . . Feedback Blocked . | . . . . . . Robot Schematics Acquired . | . . . . . . Robots Built . | . . . . . . Matter . | . . . . . . Time . | . . . . . . Total Robot Build Rating . | . . . . . . Part Schematics Acquired . | . . . . . . Parts Built . | . . . . . . Matter . | . . . . . . Time . | . . . . . . Total Part Build Rating . | . . . . . . Parts Repaired 3 | . . . . . 3 Time 110 | . . . . . 110 Parts Recycled . | . . . . . . Recycled Matter . | . . . . . . Retrieved Matter . | . . . . . . Retrieved Components . | . . . . . . Parts Scanalyzed . | . . . . . . Part Schematics Acquired . | . . . . . . Parts Damaged . | . . . . . . Bothacking | -11 -10 -10 -10 -9 -8 ------------ Run | Scr Mat Min Exi Min Mat Used RIF Installer . | . . . . . . Robots Hacked . | . . . . . . Non-combat . | . . . . . . Combat . | . . . . . . Robot Hacks Applied . | . . . . . . Relay Couplers Released . | . . . . . . Robots Rewired . | . . . . . . Allies Hacked . | . . . . . . Hacks Repelled . | . . . . . . Allies | -11 -10 -10 -10 -9 -8 -------- Run | Scr Mat Min Exi Min Mat Total Allies 3 | . . 2 . 1 . Largest Group 2 | . . 2 1 1 . Highest-Rated Group 50 | . . 50 31 31 . Highest-Rated Ally 31 | . . 31 31 31 . Total Orders . | . . . . . . Ally Attacks . | . . . . . . Total Damage . | . . . . . . Kills . | . . . . . . Allies Corrupted . | . . . . . . Allies Melted . | . . . . . . Intel | -11 -10 -10 -10 -9 -8 ------- Run | Scr Mat Min Exi Min Mat Robot Analysis Total 1 | . . . . . 1 Derelict Logs Recovered 4 | . . 2 . 2 . Drone Launches . | . . . . . . Drone Recoveries . | . . . . . . Exploration | -11 -10 -10 -10 -9 -8 ------------- Run | Scr Mat Min Exi Min Mat Turns Passed 2511 | 118 66 386 697 756 488 Spaces Moved 1692 | 75 32 283 579 484 239 Core 24 | 12 . . . . 12 Treads . | . . . . . . Legs 1668 | 63 32 283 579 484 227 Wheels . | . . . . . . Hover . | . . . . . . Flight . | . . . . . . Fastest Speed 50 | 50 150 120 120 120 120 Average Speed 124 | 131 150 127 120 120 133 Slowest Speed 450 | 150 150 150 120 120 450 Overloaded Moves . | . . . . . . Propulsion Burnouts . | . . . . . . Robots Hopped . | . . . . . . Cave-ins Triggered 1 | . . . . 1 . Exploration Rate (%) 42 | 6 11 64 80 78 17 Regions Visited 5 Branch Regions 3 Pre-discovered Areas 1 | . . 1 . . . Known Exits Taken 1 | . . . . 1 . Unknown Exits Taken 4 | 1 1 1 1 . . Scrap Searched 2 | . . 1 . 1 . Spaces Dug 23 | . . . . 23 . Terrain Destroyed 126 | . . . . 113 13 Melee . | . . . . . . Projectile 29 | . . . . 27 2 AOE 97 | . . . . 86 11 Terrain Rammed . | . . . . . . Walls Destroyed . | . . . . . . Machines Disabled . | . . . . . . Actions | -11 -10 -10 -10 -9 -8 --------- Run | Scr Mat Min Exi Min Mat Total 1916 | 90 40 302 580 562 342 Wait 63 | . 3 6 . 32 22 Move 1687 | 74 31 282 578 483 239 Hop . | . . . . . . Pick Up 29 | 7 . 4 . 3 15 Fast Attach 10 | 4 1 . . 1 4 Attach 12 | 1 . 1 . 1 9 Detach . | . . . . . . Swap 14 | . . 3 2 5 4 Drop 12 | . . 3 . 3 6 Fire 77 | 1 5 3 . 34 34 Melee . | . . . . . . Ram 9 | . . . . . 9 Kick 3 | 3 . . . . . Crush . | . . . . . . Escape Stasis . | . . . . . . Rewire . | . . . . . . Trap . | . . . . . . Miscellaneous . | . . . . . . Route ------- -11/Scrapyard -10/Materials -10/Mines (discovered 3 exits: [*Mat x2] / [*Exi]) -10/Exiles (discovered 2 exits: [*Min x2]) -9/Mines -8/Materials History --------- Turn | Location | Event 14 | -11/Scrapyard | Discovered new exit (range 15) 119 | -11/Scrapyard | Entered Materials 160 | -10/Materials | Discovered new exit (range 4) 185 | -10/Materials | Entered Mines 199 | -10/Mines | Learned Materials security intel 322 | -10/Mines | Build established: Mutant 325 | -10/Mines | Learned location of Recycling (-7) 426 | -10/Mines | Discovered new exit (range 12) 477 | -10/Mines | Received a Rocket Launcher from a helpful Derelict 516 | -10/Mines | Discovered new exit (range 12) 566 | -10/Mines | Deemed a non-threat by the Exiles lab entrance 566 | -10/Mines | Discovered new exit (range 5) 571 | -10/Mines | Entered Exiles 571 | -10/Exiles | Accompanied by 1 ally 601 | -10/Exiles | Led the pair of lost Derelicts to a safe place 642 | -10/Exiles | Discovered new exit (range 15) 686 | -10/Exiles | Met 8R-AWN 730 | -10/Exiles | Met EX-HEX 776 | -10/Exiles | Met EX-DEC 865 | -10/Exiles | Discovered new exit (range 14) 1021 | -10/Exiles | Visited The Gauntlet 1268 | -10/Exiles | Entered Mines 1322 | -9/Mines | Learned Materials stockpile data 1595 | -9/Mines | Identified exit to Materials 1716 | -9/Mines | Received a Mining Laser from a helpful Derelict 1922 | -9/Mines | Crushed by falling debris 1953 | -9/Mines | Lost 3 parts (1p1u1w) 2024 | -9/Mines | Entered Materials 2024 | -8/Materials | Evolved 4 slots: Power x1, Utility x2, Weapon x1 2041 | -8/Materials | Repaired Rocket Launcher 2041 | -8/Materials | Repaired Sml. Storage Unit 2041 | -8/Materials | Repaired Aluminum Leg 2119 | -8/Materials | Lost 5 parts (1p1n3w) 2466 | -8/Materials | Core integrity fell below 50% 2508 | -8/Materials | Core integrity fell below 20% 2512 | -8/Materials | Destroyed by H-55 Commando with Assault Rifle Last Messages --------------- 02470_ Penetrated by Slug. 02475_ Slug penetrates Wall. 02478_ Sml. Laser destroyed. 02483_ G-47 Trooper destroyed. 02484_ Slug penetrates Wall. 02485_ Acquired 49 matter. 02487_ Hrd. Medium Armor Plating destroyed. 02488_ Slug penetrates Wall. 02488_ Shotgun destroyed. 02492_ Slug penetrates Wall. 02492_ Targeting Computer destroyed. 02496_ Sml. Storage Unit destroyed. 02501_ Adv. Sensor Array destroyed. 02503_ Slammed into G-50 Soldier. 02503_ Imp. Ion Engine destroyed. 02504_ Slammed into G-50 Soldier. 02506_ Slammed into G-47 Trooper. 02507_ Destabilizing: Core damaged (-11). 02508_ Slammed into G-47 Trooper. 02512_ Penetrated by Slug. Map ----- +----------------------------------------------------+ | ???????????##### #?# ##"T"### | | ???????????# # #?#####+######" "### | | ???????????# # ###### | | ???????????+ # + | | ???????????# # ###### """ """ "" | | ??????????## # #????# """ """ "" | | ??????????# ##+########## """ """ "" | | ??????????# | | ??????????# | | ??????????# | | ??????????# " #################### | | ??????????# T #??????????????????# | | ??????# ### [ " #??????""??????????# | | ??????+ #???? """??????????+ | | ??????# #?? """#???????? # | | ??????##+######### # = #?????????# | | ???????# + =+ """#?????????? | | ???????# # # """#?????????? ? | | ???????# =# #? """????????????? | | ???????# # #?? #???????????? | | ???????# *[ # #???######???????????? | | ???????# *[ # #######??????????????? | | ???????# / #??????????????? | | ???????# #* ### ???????? | | ???????###########/####?? ?????????? | | ????????# g ! @g #????? ????????? | | ????????# """ """h""" #???????? ?????????? | | ????????# """ """ """ #??????????????????? | | ????????# """ """ """ #??????????????????? | | ????????# #??????????????????? | | ????????# ! #??????????????????? | | ????????###############??????????????????? | | ?????????????????????????????????????????? | | ?????????????????????????????????????????? | | ?????????????????????????????????????????? | | ?????????????????????????????????????????? | | ?????????????????????????????????????????? | | ?????????????????????????????????????????? | | ?????????????????????????????????????????? | | ?????????????????????????????????????????? | | ?????????????????????????????????????????? | | ?????????????????????????????????????????? | | ?????????????????????????????????????????? | | ?????????????????????????????????????????? | | ?????????????????????????????????????????? | | ?????????????????????????????????????????? | | ?????????????????????????????????????????? | | ?????????????????????????????????????????? | | ?????????????????????????????????????????? | | ?????????????????????????????????????????? | +----------------------------------------------------+ Best States ------------- Heat Dissipation 31 Energy Generation 12 Energy Capacity 265 Matter Stores 300 Matter Capacity 300 Sight Range 16 Robot Scan Range 16 Terrain Scan Density 10 Armor Coverage 225 Weapon Shielding 33 Evasion (%) 50 Targeting Accuracy 5 Item Schematics ----------------- None Robot Schematics ------------------ None Fabricated ------------ Nothing Alien Tech Used ----------------- None Achievements -------------- Unlikely Earthworm Challenges ------------ None Game ------ Seed WardroneNetworkMegatreads Manual? 0 Play Time 00:58:50 Cumulative 30.8 hours Start 2022.02.06 @ 23:44:30 End 2022.02.07 @ 00:50:09 Sessions 1 Manual Loads 0 Difficulty Rogue Special Mode None Game No. 43 Rogue 43 Adventurer 0 Explorer 0 Win Type - Total 0 Types 0/0/0/0/0/0/0/0/0 Lore% 6 Gallery% 21 Achievement% 16 Wizard Run 0 Options --------- ASCII 0 Keyboard 0 Movement Mouse Keybinds 0 Fullscreen 1 Font 18/SmallcapsGlow Map View 76x50 Tactical HUD 1 Map Filters NONE Filters NONE Steam 1 RUN: 213b0899-f690-4f8a-9a04-ff66780df9fe